bitfinex/quotes_ETHUSD_20250217
["timestamp","ask_amount","ask_price","bid_price","bid_amount"]
[1739792640098,4.41313,2749.9,2749.4,8.02618]
[1739792640645,4.41313,2749.9,2749.4,3.63708]
[1739792640899,3.63664,2749.8,2749.4,3.63708]
[1739792641072,3.63677,2749.7,2749.3,0.74050063]
[1739792641236,0.7766,2749.9,2749.5,0.10249815]
[1739792641592,4.41311,2749.9,2749.4,3.63707]
[1739792641799,4.41311,2749.9,2749.6,0.10249815]
[1739792641953,4.41311,2749.9,2749.4,3.63707]
[1739792642155,4.41311,2749.9,2749.7,0.10249815]
[1739792642377,0.7766,2749.9,2749.5,3.63699]
[1739792642558,4.4131,2749.9,2749.8,0.10249815]
[1739792642756,0.7766,2749.9,2749.4,3.63713]
[1739792642959,4.41313,2749.9,2749.8,0.10249815]
[1739792643172,4.41313,2749.9,2749.4,3.63713]
[1739792643342,4.41313,2749.9,2749.8,0.10249815]
[1739792643543,3.63675,2749.8,2749.2,4.38859]
[1739792643784,3.63677,2749.7,2749.2,4.38859]
[1739792644085,3.63677,2749.7,2749.2,8.02594]
[1739792644287,3.63677,2749.7,2749.2,4.38855]
[1739792645077,3.63677,2749.7,2749.2,0.7512]
[1739792645277,0.8231,2749.5,2749.1,4.36093585]
[1739792646249,4.46015,2749.5,2749.1,0.72345585]
[1739792647050,0.8231,2749.5,2749.1,0.72345585]
[1739792647452,4.46015,2749.5,2749.1,0.72345585]
[1739792648993,8.09725,2749.5,2749.1,0.72345585]
[1739792649499,4.46015,2749.5,2749.1,0.72345585]
[1739792649794,8.09727,2749.5,2749.1,0.72345585]
[1739792649997,4.46015,2749.5,2749.1,0.72345585]
[1739792650606,3.63716,2749.4,2749.0,3.78559]
[1739792651109,8.09728,2749.5,2749.0,3.78559]
[1739792651770,4.46015,2749.5,2749.0,3.78559]
[1739792652281,8.09725,2749.5,2749.0,3.78559]
[1739792652461,4.46015,2749.5,2749.0,3.78559]
[1739792652667,4.46015,2749.5,2749.0,0.148]
[1739792653080,4.46015,2749.5,2749.0,3.78566]
[1739792653279,4.46015,2749.5,2749.0,0.148]
[1739792653567,3.63723,2749.4,2749.0,0.148]
[1739792656404,3.63723,2749.4,2749.1,0.10402135]
[1739792657001,4.46012,2749.5,2749.1,0.10402135]
[1739792657773,3.6444,2749.6,2749.2,0.8057]
[1739792658116,7.2814,2749.6,2749.2,0.8057]
[1739792658597,3.6444,2749.6,2749.3,0.10402135]
[1739792658807,8.9844,2749.6,2749.3,0.10402135]
[1739792659008,8.9844,2749.6,2749.2,0.8057]
[1739792659306,8.9844,2749.6,2749.4,0.10402135]
[1739792659511,5.34,2749.6,2749.4,3.63709]
[1739792659676,5.34,2749.6,2749.5,0.10402135]
[1739792660374,5.34,2749.6,2749.3,3.6372]
[1739792660701,5.34,2749.6,2749.5,0.10402135]
[1739792660905,5.34,2749.6,2749.3,3.6372]
[1739792661377,5.34,2749.6,2749.4,0.10402135]
[1739792661769,5.34,2749.6,2749.5,4.43112]
[1739792662115,0.18029335,2750.7,2749.9,3.63644]
[1739792662116,0.8246,2750.3,2749.9,3.63644]
[1739792662312,11.80887,2750.4,2750.0,0.7941]
[1739792662313,8.173,2750.4,2750.0,0.7941]
[1739792662456,6.38631597,2750.8,2750.2,3.63601]
[1739792662457,7.21091597,2750.8,2750.2,3.63601]
[1739792662661,7.21091597,2750.8,2750.3,0.7941]
[1739792662878,7.21091597,2750.8,2750.3,0.8979385]
[1739792663376,7.21091597,2750.8,2750.3,0.88091595]
[1739792663806,3.63551,2750.7,2750.3,0.88091595]
[1739792666729,7.21090597,2750.8,2750.3,0.88091595]
[1739792666955,4.45997,2750.8,2750.3,0.77707745]
[1739792667256,3.63537,2750.8,2750.3,0.77707745]
[1739792667549,4.44341,2750.7,2750.3,0.77707745]
[1739792667748,8.07895,2750.7,2750.4,0.10306671]
[1739792667952,4.44341,2750.7,2750.4,0.10306671]
[1739792668168,4.44341,2750.7,2750.3,0.77707745]
[1739792668469,4.44341,2750.7,2750.4,0.10306671]
[1739792668818,0.8079,2750.7,2750.4,3.63582]
[1739792669019,3.63531,2750.8,2750.5,0.10306671]
[1739792669219,3.63544,2750.7,2750.5,0.10306671]
[1739792669521,3.63544,2750.7,2750.6,0.10306671]
[1739792669723,7.27072,2750.8,2750.3,0.77707745]
[1739792669919,0.7915,2751.2,2750.4,0.10306671]
[1739792670119,3.63491,2751.1,2750.6,3.63544]
[1739792670463,3.63491,2751.1,2750.7,0.8008]
[1739792670634,3.63491,2751.1,2750.7,0.90386671]
[1739792672060,3.63472,2751.3,2750.7,4.53919671]
[1739792672250,0.0075,2751.2,2750.7,0.90386671]
[1739792672560,4.42603,2751.4,2750.8,3.63517]
[1739792672717,4.42603,2751.4,2750.9,3.63508]
[1739792673149,3.63466,2751.3,2751.0,0.10306671]
[1739792673863,0.7915,2751.4,2751.0,0.10306671]
[1739792674077,4.42602,2751.4,2751.0,0.10306671]
[1739792674674,3.63465,2751.3,2751.0,0.10306671]
[1739792674824,0.7915,2751.4,2751.0,0.10306671]
[1739792675449,0.7915,2751.4,2751.1,3.63481]
[1739792675763,3.63425,2751.6,2751.2,0.10222741]
[1739792676356,3.63446,2751.5,2751.2,0.10222741]
[1739792676722,3.63446,2751.5,2751.1,0.8153]
[1739792676969,3.63446,2751.5,2751.2,0.10222741]
[1739792677138,3.63446,2751.5,2751.1,0.8153]
[1739792677341,3.63446,2751.5,2751.2,0.10222741]
[1739792677539,3.63432,2751.6,2751.2,0.10222741]
[1739792677952,3.63424,2751.6,2751.2,0.10222741]
[1739792678231,9.78887,2751.7,2751.2,0.10222741]
[1739792678232,3.6344,2751.5,2751.2,0.10222741]
[1739792678835,3.63453,2751.4,2751.2,0.10222741]
[1739792679067,3.63453,2751.4,2750.9,3.63505]
[1739792679266,3.63453,2751.4,2751.3,0.09857643]
[1739792679441,3.63453,2751.4,2750.9,3.63515]
[1739792679945,3.63453,2751.4,2751.0,0.09857643]
[1739792680346,3.63453,2751.4,2750.9,3.63517]
[1739792680554,3.63453,2751.4,2751.0,0.09857643]
[1739792681291,4.39531,2751.3,2751.0,0.09857643]
[1739792681492,0.7606,2751.3,2750.6,3.63549]
[1739792681832,3.63486,2751.2,2750.6,7.27098]
[1739792681983,3.63486,2751.2,2750.7,3.73361783]
[1739792682761,6.1006,2751.3,2750.8,3.63521]
[1739792683092,6.1006,2751.3,2750.9,3.63517]
[1739792683243,6.1006,2751.3,2750.9,3.73338783]
[1739792683748,5.34,2751.3,2751.0,0.8148]
[1739792684100,5.34,2751.3,2751.0,4.44976]
[1739792684272,5.34,2751.3,2751.1,0.09821783]
[1739792686202,5.34,2751.3,2751.1,3.73308783]
[1739792687517,5.34,2751.3,2751.1,0.09821783]
[1739792688401,3.63452,2751.4,2751.1,0.09821783]
[1739792688993,0.7638,2751.3,2750.8,3.63521]
[1739792689196,4.39854,2751.3,2750.9,0.09821783]
[1739792690216,4.17328431,2751.5,2751.1,3.6349]
[1739792690896,7.80766431,2751.5,2751.2,0.09821783]
[1739792691692,3.63454,2751.4,2751.2,0.09821783]
[1739792692403,4.17328431,2751.5,2751.2,0.09821783]
[1739792692997,7.80768431,2751.5,2751.2,0.09821783]
[1739792693726,3.63455,2751.4,2751.2,0.09821783]
[1739792694094,3.63455,2751.4,2751.0,3.63504]
[1739792694285,3.63455,2751.4,2751.3,0.09821783]
[1739792694483,3.63455,2751.4,2751.0,3.63504]
[1739792694714,3.63455,2751.4,2751.3,0.09821783]
[1739792694880,3.63426,2751.6,2751.0,3.63504]
[1739792694881,3.63426,2751.6,2751.1,3.63485]
[1739792695092,3.63445,2751.5,2751.3,0.09821783]
[1739792695292,3.63445,2751.5,2751.0,3.63504]
[1739792695686,3.63445,2751.5,2751.1,0.09821783]
[1739792696114,3.63452,2751.4,2751.1,0.09821783]
[1739792697325,0.7738,2751.2,2751.1,0.09821783]
[1739792697524,3.63465,2751.3,2751.1,0.09821783]
[1739792697822,7.04399431,2751.4,2751.2,0.09812311]
[1739792698008,3.63464,2751.3,2751.2,0.09812311]
[1739792698213,3.63464,2751.3,2750.7,4.4428]
[1739792698426,3.63464,2751.3,2751.2,0.09812311]
[1739792698722,3.63464,2751.3,2750.7,4.44275]
[1739792698922,7.04399431,2751.4,2751.2,0.09810958]
[1739792699227,7.04399431,2751.4,2750.9,3.63513]
[1739792699594,7.04399431,2751.4,2751.0,0.09810958]
[1739792701114,10.67860431,2751.4,2751.0,0.09810958]
[1739792701520,3.6349,2751.1,2751.0,0.09810958]
[1739792701834,3.63476,2751.3,2750.7,4.44282]
[1739792702014,7.04408431,2751.4,2751.0,0.09808929]
[1739792702233,0.7663,2751.5,2751.1,0.7963]
[1739792702234,4.40068,2751.5,2751.1,0.7963]
[1739792702398,4.40068,2751.5,2751.1,0.89438929]
[1739792703489,3.63454,2751.4,2751.1,0.09808929]
[1739792703692,3.63473,2751.3,2751.1,0.09808929]
[1739792703902,3.63473,2751.3,2750.8,3.63529]
[1739792704104,7.04402431,2751.4,2751.2,0.09808929]
[1739792704311,7.04402431,2751.4,2750.9,3.63517]
[1739792704533,7.04402431,2751.4,2751.3,0.09808929]
[1739792704835,3.63454,2751.4,2751.3,0.09808929]
[1739792705124,3.63454,2751.4,2750.9,3.63517]
[1739792705324,3.63454,2751.4,2751.3,0.09808929]
[1739792705526,3.63473,2751.3,2750.8,3.63523]
[1739792705711,3.63473,2751.3,2750.7,0.8158]
[1739792705712,3.63484,2751.2,2750.7,4.45121]
[1739792705912,0.8047,2751.1,2750.6,3.78346]
[1739792706215,0.8047,2751.1,2750.6,0.148]
[1739792706216,3.63506,2751.0,2750.6,0.148]
[1739792706527,3.63513,2751.0,2750.6,0.148]
[1739792707115,3.40948431,2751.1,2750.6,4.59033]
[1739792707312,3.63486,2751.2,2750.6,4.59033]
[1739792707829,3.63499,2751.1,2750.6,4.59033]
[1739792708240,5.34,2751.3,2750.6,1.777415]
[1739792708400,5.34,2751.3,2751.0,0.7586]
[1739792709138,5.34,2751.3,2751.0,4.39363]
[1739792709540,5.34,2751.3,2751.0,4.39353]
[1739792710343,5.34,2751.3,2751.0,8.02849]
[1739792710518,5.34,2751.3,2751.0,4.39353]
[1739792710925,3.63493,2751.1,2750.7,0.8033]
[1739792711144,4.40874,2751.2,2750.7,0.8033]
[1739792712004,0.7739,2751.2,2750.7,0.8033]
[1739792712205,0.7739,2751.2,2750.8,3.63521]
[1739792712446,0.7739,2751.2,2750.7,0.8033]
[1739792712447,4.40868,2751.2,2750.7,4.43869]
[1739792713549,4.40868,2751.2,2750.6,0.148]
[1739792713746,7.04451431,2751.1,2750.6,0.148]
[1739792714107,7.04451431,2751.1,2750.6,3.78355]
[1739792714325,3.63503,2751.1,2750.6,7.41904]
[1739792714525,3.63503,2751.1,2750.6,3.78349]
[1739792714721,3.63503,2751.1,2750.7,3.63543]
[1739792715008,5.34,2751.3,2750.9,4.45894]
[1739792715403,5.34,2751.3,2751.0,3.63497]
[1739792715828,5.34,2751.3,2751.1,3.63488]
[1739792716245,7.86607431,2751.7,2751.2,3.73302166]
[1739792716562,4.45659,2751.7,2751.3,0.8238]
[1739792716909,4.45659,2751.7,2751.4,0.09825166]
[1739792717567,0.8224,2751.7,2751.3,4.45843]
[1739792717713,3.63398,2751.8,2751.3,4.45843]
[1739792717911,3.63398,2751.8,2751.4,0.09825166]
[1739792719561,4.42698,2751.9,2751.4,0.09825166]
[1739792719762,3.63417,2751.7,2751.4,0.09825166]
[1739792719916,3.63425,2751.6,2751.4,0.09825166]
[1739792720117,3.63409,2751.8,2751.4,0.09825166]
[1739792720317,3.63412,2751.7,2751.4,0.09825166]
[1739792720919,0.793,2751.9,2751.4,0.09825166]
[1739792721120,4.42687,2751.9,2751.4,3.73276166]
[1739792721870,3.63399,2751.8,2751.4,0.09825166]
[1739792723438,4.42685,2751.9,2751.4,3.73267166]
[1739792724067,3.634,2751.8,2751.4,3.73267166]
[1739792724499,3.634,2751.8,2751.4,0.09825166]
[1739792724706,7.26808,2751.8,2751.4,0.09825166]
[1739792724867,4.42695,2751.9,2751.4,3.73271166]
[1739792725208,3.6341,2751.8,2751.4,0.09825166]
[1739792726407,12.38328431,2752.0,2751.4,0.09825166]
[1739792726555,12.38328431,2752.0,2751.3,4.45835]
[1739792726556,12.38328431,2752.0,2751.5,3.63435]
[1739792726755,16.01708431,2752.0,2751.6,0.09796076]
[1739792726998,8.9738,2752.0,2751.7,0.7654]
[1739792727202,8.97379,2752.0,2751.7,0.7654]
[1739792727545,8.97379,2752.0,2751.8,0.09796076]
[1739792727852,8.97379,2752.0,2751.7,0.7654]
[1739792728054,3.63332,2752.3,2751.9,0.09796076]
[1739792728206,12.38267431,2752.4,2751.9,3.63385]
[1739792728406,8.97319,2752.4,2752.0,0.09794047]
[1739792728606,5.34,2752.4,2751.9,3.63385]
[1739792728837,3.63333,2752.3,2751.9,3.63385]
[1739792729553,3.63333,2752.3,2751.7,4.39943]
[1739792729749,5.34,2752.4,2751.9,0.8148]
[1739792729897,5.34,2752.4,2752.0,3.63362]
[1739792730304,5.34,2752.4,2752.1,3.73094561]
[1739792731038,5.34,2752.4,2752.1,0.09736561]
[1739792732287,5.34,2752.4,2752.1,0.15561541]
[1739792732896,3.63309,2752.5,2752.1,0.15561541]
[1739792733058,3.63292,2752.6,2752.1,0.61601895]
[1739792733253,3.63292,2752.6,2752.2,0.7962]
[1739792733755,20.55783431,2752.7,2752.3,0.15561541]
[1739792733936,7.04248431,2752.6,2752.2,0.7962]
[1739792734133,7.04248431,2752.6,2752.2,1.239183]
[1739792734588,7.04248431,2752.6,2752.3,0.15559513]
[1739792734795,7.04248431,2752.6,2752.2,1.239183]
[1739792735098,7.04248431,2752.6,2752.3,0.15557485]
[1739792735397,7.04248431,2752.6,2752.2,1.239183]
[1739792735605,7.04248431,2752.6,2752.3,0.15557485]
[1739792735756,7.04248431,2752.6,2752.2,1.239183]
[1739792735954,3.40948431,2752.6,2752.2,1.239183]
[1739792736166,3.40948431,2752.6,2752.3,3.78887485]
[1739792736698,8.168,2752.7,2752.3,3.78887485]
[1739792737199,3.00162438,2752.8,2752.3,3.6333]
[1739792737495,3.00162438,2752.8,2752.4,0.15557485]
[1739792738706,3.00162438,2752.8,2752.7,4.38379]
[1739792739004,3.00162438,2752.8,2752.7,4.97755457]
[1739792739302,0.09,2752.9,2752.8,3.0]
[1739792739498,0.09,2752.9,2752.8,7.40606]
[1739792739888,0.09,2752.9,2752.8,7.56120904]
[1739792740302,0.75932877,2753.9,2752.8,7.56120904]
[1739792740303,0.00602877,2753.9,2753.1,3.63226]
[1739792740603,0.00602877,2753.9,2753.7,0.7734]
[1739792740755,0.00602877,2753.9,2753.8,3.63134]
[1739792740952,0.00602877,2753.9,2753.8,3.78524554]
[1739792744515,0.00602877,2753.9,2753.8,0.15390554]
[1739792744809,0.00602877,2753.9,2753.7,4.40487]
[1739792744976,0.00602877,2753.9,2753.8,0.95753954]
[1739792745375,0.00602877,2753.9,2753.8,4.58887954]
[1739792745563,0.00602877,2753.9,2753.8,5.36197954]
[1739792746562,0.00602877,2753.9,2753.8,1.73063954]
[1739792747263,0.00602877,2753.9,2753.8,0.92700554]
[1739792748065,0.00602877,2753.9,2753.8,4.55834554]
[1739792748265,0.00602877,2753.9,2753.8,4.59465568]
[1739792749867,3.63057,2754.4,2753.8,4.58873725]
[1739792750401,3.63758,2754.8,2753.8,0.95739725]
[1739792750579,3.63036,2754.6,2754.0,3.63099]
[1739792750915,3.63029,2754.6,2754.1,3.76691928]
[1739792751123,3.63029,2754.6,2754.1,0.13607928]
[1739792751664,3.63043,2754.5,2754.1,0.13607928]
[1739792753279,5.34,2754.8,2754.1,0.13607928]
[1739792753505,3.63031,2754.6,2754.1,0.13607928]
[1739792753815,3.63031,2754.6,2754.1,4.14370821]
[1739792754014,3.63028,2754.7,2754.1,4.14370821]
[1739792754164,3.63028,2754.7,2754.3,0.7933]
[1739792754601,3.63031,2754.6,2754.4,0.13607928]
[1739792754806,3.63048,2754.5,2754.4,0.13607928]
[1739792754987,3.63048,2754.5,2754.0,0.8242]
[1739792755188,3.63022,2754.7,2754.1,0.13607928]
[1739792755389,3.6303,2754.6,2754.1,0.13607928]
[1739792755595,3.63022,2754.7,2754.1,3.76701928]
[1739792755781,3.63015,2754.7,2754.1,3.76701928]
[1739792755986,7.26041,2754.7,2754.1,3.76701928]
[1739792756284,3.63056,2754.4,2754.1,1.03916841]
[1739792756998,3.63043,2754.5,2754.1,1.03916841]
[1739792757512,3.6306,2754.4,2754.1,1.03916841]
[1739792758297,5.34,2754.8,2754.1,1.03916841]
[1739792758603,3.63062,2754.4,2754.1,1.03916841]
[1739792759477,3.63062,2754.4,2754.1,0.13607928]
[1739792760320,3.63071,2754.3,2754.1,0.13607928]
[1739792760810,3.63123,2753.9,2753.6,0.7862]
[1739792761015,3.63099,2754.1,2753.6,0.7862]
[1739792761214,3.63107,2754.1,2753.7,0.13603892]
[1739792761376,5.34,2754.4,2753.7,0.66605536]
[1739792761582,3.63077,2754.3,2753.9,0.7862]
[1739792761800,8.97064,2754.4,2754.0,0.13583703]
[1739792762720,5.34,2754.4,2754.0,3.76683703]
[1739792763018,5.34,2754.4,2754.1,0.03630546]
[1739792763216,3.63035,2754.6,2754.2,0.51597635]
[1739792763620,3.63068,2754.3,2754.2,0.1356621]
[1739792763826,3.63111,2754.0,2753.8,0.7573]
[1739792763988,3.63111,2754.0,2753.9,0.13562846]
[1739792764331,3.63087,2754.2,2753.9,0.13562846]
[1739792764493,3.63095,2754.1,2753.9,0.13562846]
[1739792764692,3.63108,2754.0,2753.9,0.13562846]
[1739792765244,3.63108,2754.0,2753.6,0.7503]
[1739792765384,3.63095,2754.1,2753.7,0.13564865]
[1739792765826,3.63075,2754.3,2753.8,3.63131]
[1739792765991,3.63075,2754.3,2753.9,0.7762]
[1739792766186,3.63075,2754.3,2754.0,0.13564865]
[1739792766999,3.6305,2754.5,2754.0,0.13564865]
[1739792767202,3.6305,2754.5,2754.1,0.45429687]
[1739792767528,3.6305,2754.5,2754.2,0.13568901]
[1739792768700,3.63055,2754.4,2754.2,0.13568901]
[1739792769103,3.63055,2754.4,2753.9,0.7762]
[1739792769652,3.63095,2754.1,2754.0,0.13568901]
[1739792769940,4.38183,2754.2,2753.4,0.7768]
[1739792770234,3.63155,2753.7,2753.4,0.76680184]
[1739792770435,3.63123,2753.9,2753.4,0.76680184]
[1739792770662,3.63141,2753.8,2753.4,0.76680184]
[1739792771250,3.63104,2754.1,2753.4,4.97810047]
[1739792771403,3.63128,2753.9,2753.4,5.01441487]
[1739792771606,3.63121,2753.9,2753.4,1.34634047]
[1739792771801,3.63122,2753.9,2753.4,1.34634047]
[1739792772024,3.63118,2754.0,2753.4,0.76680184]
[1739792772202,3.63132,2753.9,2753.4,0.76680184]
[1739792772521,7.26261,2753.9,2753.4,0.76680184]
[1739792772728,3.63136,2753.8,2753.4,0.76680184]
[1739792772929,3.63124,2753.9,2753.4,0.76680184]
[1739792773140,3.63103,2754.1,2753.5,4.07153318]
[1739792773322,3.63119,2754.0,2753.5,4.07153318]
[1739792773958,3.63068,2754.3,2753.5,0.43987318]
[1739792774161,3.63145,2753.8,2753.4,0.76680184]
[1739792774457,3.63147,2753.7,2753.4,0.76680184]
[1739792774620,3.63161,2753.6,2753.4,0.76680184]
[1739792775404,3.63174,2753.5,2753.4,0.76680184]
[1739792775609,3.63161,2753.6,2753.4,0.76680184]
[1739792776375,3.63161,2753.6,2753.5,0.1355679]
[1739792779174,5.34,2753.8,2753.5,0.9343679]
[1739792779320,5.34,2753.8,2753.5,0.7988]
[1739792779517,4.39025,2754.3,2753.6,0.12643951]
[1739792779723,3.63085,2754.2,2753.7,0.7988]
[1739792780028,3.63085,2754.2,2753.8,0.12643278]
[1739792780029,3.63098,2754.1,2753.8,0.12643278]
[1739792780230,3.6308,2754.3,2753.7,0.7988]
[1739792780482,3.63069,2754.3,2753.8,0.12643278]
[1739792780634,3.63088,2754.2,2753.8,0.12643278]
[1739792780838,3.63069,2754.3,2753.8,4.08700528]
[1739792781041,7.26145,2754.3,2753.9,0.12643278]
[1739792781373,3.63097,2754.1,2753.9,0.12643278]
[1739792782071,3.63077,2754.3,2754.0,0.12643278]
[1739792782254,3.63077,2754.3,2753.8,3.63127]
[1739792782438,6.0995,2754.5,2753.9,0.56943978]
[1739792782640,3.63055,2754.4,2753.9,0.12643278]
[1739792782840,3.63088,2754.2,2753.7,4.43019]
[1739792783080,3.63061,2754.4,2753.8,0.12643278]
[1739792783248,3.63061,2754.4,2754.0,0.8135]
[1739792783427,3.63069,2754.3,2754.0,0.8135]
[1739792783628,3.63084,2754.2,2754.1,0.12643278]
[1739792784154,5.34,2754.5,2754.1,0.12643278]
[1739792784359,3.63066,2754.4,2754.1,0.12643278]
[1739792784560,3.63066,2754.4,2754.0,0.8135]
[1739792784744,3.63066,2754.4,2754.2,0.12643278]
[1739792784941,3.63083,2754.2,2754.0,0.8135]
[1739792785172,3.63088,2754.2,2754.0,0.8135]
[1739792785475,3.63088,2754.2,2753.6,4.42468]
[1739792785630,3.63115,2754.0,2753.6,1.66982532]
[1739792785829,3.6313,2753.9,2753.6,1.66982532]
[1739792787362,0.7837,2754.2,2753.6,1.66982532]
[1739792787564,3.63129,2753.9,2753.6,0.7931]
[1739792788671,0.7837,2754.2,2753.6,0.7931]
[1739792788854,3.63078,2754.3,2753.6,0.7931]
[1739792789161,3.63078,2754.3,2753.7,3.63147]
[1739792789460,3.63078,2754.3,2753.8,0.442457]
[1739792789837,3.63064,2754.4,2753.9,0.7525]
[1739792790044,3.63071,2754.3,2753.9,0.7525]
[1739792790366,7.26147,2754.3,2753.9,0.7525]
[1739792790567,3.63096,2754.1,2753.9,0.7525]
[1739792790862,5.34,2754.5,2753.9,0.7525]
[1739792791070,3.63108,2754.0,2753.5,6.63167]
[1739792791374,3.63109,2754.0,2753.6,0.87852232]
[1739792791532,3.63138,2753.8,2753.6,0.87852232]
[1739792792566,3.63123,2753.9,2753.6,0.87852232]
[1739792793381,3.63107,2754.1,2753.6,0.87852232]
[1739792793535,3.63107,2754.1,2753.6,4.96115255]
[1739792793733,3.63107,2754.1,2753.6,1.32955255]
[1739792793933,0.7645,2754.3,2753.6,1.32955255]
[1739792794186,3.63127,2753.9,2753.6,0.87852232]
[1739792795577,3.631,2754.1,2753.6,4.51012232]
[1739792795795,3.631,2754.1,2753.7,3.63147]
[1739792795995,12.60098,2754.5,2753.9,3.63114]
[1739792796278,12.60098,2754.5,2754.0,3.75716307]
[1739792796644,8.97045,2754.5,2754.1,3.63093]
[1739792796943,8.97045,2754.5,2754.1,0.8088]
[1739792797159,8.97045,2754.5,2754.2,0.12610307]
[1739792797802,3.63063,2754.4,2754.2,0.12610307]
[1739792799278,5.34,2754.5,2754.2,0.12610307]
[1739792799579,5.34,2754.5,2754.1,0.8088]
[1739792799580,3.63055,2754.4,2754.1,0.8088]
[1739792799984,8.97046,2754.5,2754.2,0.12610307]
[1739792800281,3.63055,2754.4,2754.2,0.12610307]
[1739792800443,8.97046,2754.5,2754.2,0.12610307]
[1739792800756,8.97048,2754.5,2754.1,0.8088]
[1739792801283,3.63048,2754.5,2754.2,0.12610307]
[1739792801642,7.26102,2754.5,2754.2,0.12610307]
[1739792802282,3.63048,2754.5,2754.2,0.12610307]
[1739792802871,7.261,2754.5,2754.2,0.12610307]
[1739792803279,3.63048,2754.5,2754.2,0.12610307]
[1739792804378,7.26099,2754.5,2754.2,0.12610307]
[1739792804753,3.63048,2754.5,2754.2,0.12610307]
[1739792805154,7.26098,2754.5,2754.2,0.12610307]
[1739792805366,3.63048,2754.5,2754.2,0.12610307]
[1739792806571,7.261,2754.5,2754.2,0.12610307]
[1739792807113,3.63044,2754.5,2754.2,0.12610307]
[1739792808318,3.63032,2754.6,2754.2,3.75691307]
[1739792808516,3.63032,2754.6,2754.2,0.12610307]
[1739792809114,3.63023,2754.7,2754.2,3.75685307]
[1739792809480,8.74948431,2754.9,2754.2,3.75685307]
[1739792809678,8.96996,2754.9,2754.4,3.63046]
[1739792809984,8.96996,2754.9,2754.5,0.12602234]
[1739792810314,8.96996,2754.9,2754.6,0.8062]
[1739792810818,8.96996,2754.9,2754.7,0.12580034]
[1739792811320,12.59995,2754.9,2754.7,0.12580034]
[1739792811612,12.59997,2754.9,2754.7,0.12580034]
[1739792811816,8.96996,2754.9,2754.7,0.12580034]
[1739792812021,12.59993,2754.9,2754.7,0.12580034]
[1739792812225,4.16538431,2755.2,2754.7,0.12580034]
[1739792812523,3.62966,2755.1,2754.7,0.45623503]
[1739792812821,3.62988,2755.0,2754.7,0.45623503]
[1739792812980,3.62988,2755.0,2754.8,0.12580034]
[1739792813180,4.38546,2755.2,2754.8,0.12580034]
[1739792813517,3.62963,2755.1,2754.6,4.43638]
[1739792813880,3.62963,2755.1,2754.7,0.12580034]
[1739792814219,3.62953,2755.2,2754.7,3.75594034]
[1739792814393,4.4297,2755.4,2754.8,0.45621403]
[1739792814592,3.62957,2755.2,2754.8,0.45621403]
[1739792814792,3.62938,2755.3,2754.8,0.45621403]
[1739792815005,3.62938,2755.3,2754.9,0.12551111]
[1739792815204,3.62938,2755.3,2754.9,1.54578051]
[1739792815410,3.62938,2755.3,2755.0,0.12551111]
[1739792815622,0.41657997,2755.9,2755.1,0.7616]
[1739792815782,2.46537871,2757.0,2755.9,0.7616]
[1739792815989,1.090848,2757.2,2756.4,0.7616]
[1739792816220,1.090848,2757.2,2756.8,3.62737]
[1739792816522,0.7987,2757.0,2756.4,0.73229172]
[1739792816720,3.62761,2756.7,2756.3,0.7694]
[1739792817026,0.7987,2757.0,2756.5,3.62768]
[1739792817196,4.42567,2757.2,2756.6,0.362768]
[1739792817598,4.42567,2757.2,2756.6,3.990418]
[1739792817799,4.96162,2757.5,2756.8,3.6273]
[1739792818004,8.58822,2757.5,2756.8,4.3843]
[1739792818186,0.55,2757.5,2757.0,3.62702]
[1739792818388,0.55,2757.5,2757.1,0.362702]
[1739792818828,0.55,2757.5,2757.1,3.989682]
[1739792819134,0.55,2757.5,2757.4,3.6266]
[1739792819828,0.149511,2757.8,2757.7,4.93491]
[1739792819982,0.149511,2757.8,2757.7,8.38064514]
[1739792820329,0.149511,2757.8,2757.7,8.34439431]
[1739792820484,0.149511,2757.8,2757.3,0.7615]
[1739792820682,0.149511,2757.8,2756.8,0.7615]
[1739792820683,3.55899531,2757.8,2756.8,0.7615]
[1739792820886,0.7613,2757.3,2756.3,4.38948]
[1739792821153,0.7613,2757.3,2756.3,4.38951]
[1739792821357,0.7613,2757.7,2757.0,3.62711]
[1739792821501,0.7613,2757.7,2756.5,0.0075]
[1739792821502,0.7613,2757.7,2756.6,0.55]
[1739792821705,0.149511,2757.8,2757.3,3.62672]
[1739792822239,0.149511,2757.8,2757.4,0.09943401]
[1739792822441,0.149511,2757.8,2757.4,3.72601401]
[1739792822650,0.149511,2757.8,2757.4,4.09861541]
[1739792822949,0.149511,2757.8,2757.5,0.7649]
[1739792823106,3.775601,2757.8,2757.4,0.09943401]
[1739792823405,3.62635,2757.6,2757.1,0.7732]
[1739792823837,3.40948431,2757.7,2757.1,0.7732]
[1739792824044,3.40948431,2757.7,2757.2,3.72628401]
[1739792824407,0.149511,2757.8,2757.3,3.62662]
[1739792824612,0.149511,2757.8,2757.2,4.4395014]
[1739792825040,3.40948431,2757.7,2757.3,0.09943401]
[1739792825255,3.6266,2757.5,2756.8,7.38704]
[1739792825422,3.40948431,2757.4,2756.9,3.62725]
[1739792825747,3.40948431,2757.1,2756.9,0.0958828]
[1739792825931,3.62713,2757.0,2756.9,0.0958828]
[1739792826134,4.41303,2757.0,2756.9,0.0958828]
[1739792826345,3.62794,2756.4,2755.8,4.38838]
[1739792826655,3.62813,2756.3,2755.9,0.07720758]
[1739792826814,3.62813,2756.3,2755.8,0.7597]
[1739792827218,3.62813,2756.3,2755.9,0.07720758]
[1739792827545,3.62819,2756.2,2755.9,0.07720758]
[1739792828048,3.62813,2756.3,2755.9,0.07720758]
[1739792828349,3.62818,2756.2,2755.9,0.07720758]
[1739792828535,3.62813,2756.3,2755.9,0.07720758]
[1739792828536,3.62833,2756.1,2755.9,0.07720758]
[1739792829037,3.62813,2756.3,2755.9,0.07720758]
[1739792829249,3.62831,2756.1,2755.5,0.7706]
[1739792829447,3.62871,2755.8,2755.6,0.439978]